[Event "Titled Tuesday Blitz August 09 Early 2022"]
[White "Rohith Krishna S"]
[Black "Dev, Shah"]
[WhiteFideId "46617051"]
[BlackFideId "35019058"]
[WhiteElo "2118"]
[BlackElo "2048"]
[Result "1-0"]
[Round "10"]
[TimeControl "180+1"]
[Date "2022.08.09"]
[WhiteClock "0:00:17"]
[BlackClock "0:00:01"]

1. e4 {[%clk 0:03:00]}  e5 {[%clk 0:03:00]} 2. Nf3 {[%clk 0:03:00]}  Nc6 {[%clk 0:03:00]} 3. Bc4 {[%clk 0:03:01]}  Bc5 {[%clk 0:03:00]} 4. O-O {[%clk 0:03:01]}  Nf6 {[%clk 0:03:00]} 5. d4 {[%clk 0:03:01]}  Bxd4 {[%clk 0:02:58]} 6. Nxd4 {[%clk 0:03:02]}  Nxd4 {[%clk 0:02:59]} 7. f4 {[%clk 0:03:02]}  d6 {[%clk 0:02:59]} 8. fxe5 {[%clk 0:03:02]}  dxe5 {[%clk 0:03:00]} 9. Bg5 {[%clk 0:03:02]}  Be6 {[%clk 0:02:31]} 10. Na3 {[%clk 0:03:02]}  h6 {[%clk 0:02:12]} 11. Bxf6 {[%clk 0:02:59]}  gxf6 {[%clk 0:02:13]} 12. c3 {[%clk 0:02:58]}  Nc6 {[%clk 0:02:05]} 13. Bxe6 {[%clk 0:02:46]}  Qxd1 {[%clk 0:02:03]} 14. Raxd1 {[%clk 0:02:45]}  fxe6 {[%clk 0:01:59]} 15. Rxf6 {[%clk 0:02:44]}  Ke7 {[%clk 0:02:00]} 16. Rf3 {[%clk 0:02:42]}  Rad8 {[%clk 0:01:55]} 17. Rdf1 {[%clk 0:02:40]}  Rh7 {[%clk 0:01:50]} 18. Rg3 {[%clk 0:02:30]}  Rd2 {[%clk 0:01:44]} 19. Rf2 {[%clk 0:02:28]}  Rd1+ {[%clk 0:01:43]} 20. Rf1 {[%clk 0:02:28]}  Rd2 {[%clk 0:01:44]} 21. Nc4 {[%clk 0:02:29]}  Re2 {[%clk 0:01:44]} 22. Re3 {[%clk 0:02:29]}  Rxe3 {[%clk 0:01:39]} 23. Nxe3 {[%clk 0:02:30]}  Rf7 {[%clk 0:01:35]} 24. Re1 {[%clk 0:02:30]}  b6 {[%clk 0:01:30]} 25. g3 {[%clk 0:02:28]}  Nb8 {[%clk 0:01:30]} 26. Ng4 {[%clk 0:02:26]}  Nd7 {[%clk 0:01:22]} 27. Nxh6 {[%clk 0:02:26]}  Rg7 {[%clk 0:01:21]} 28. Rf1 {[%clk 0:02:16]}  Nf6 {[%clk 0:01:21]} 29. h3 {[%clk 0:02:07]}  Rxg3+ {[%clk 0:01:17]} 30. Kh2 {[%clk 0:02:06]}  Rd3 {[%clk 0:01:13]} 31. Rg1 {[%clk 0:02:06]}  Rd2+ {[%clk 0:01:09]} 32. Kh1 {[%clk 0:02:05]}  Nxe4 {[%clk 0:01:10]} 33. Rg7+ {[%clk 0:02:05]}  Kd6 {[%clk 0:01:06]} 34. Nf7+ {[%clk 0:02:04]}  Kd5 {[%clk 0:01:06]} 35. b3 {[%clk 0:01:58]}  Nf2+ {[%clk 0:01:06]} 36. Kg2 {[%clk 0:01:56]}  Ne4+ {[%clk 0:01:06]} 37. Kf3 {[%clk 0:01:54]}  Nxc3 {[%clk 0:01:03]} 38. Nd8 {[%clk 0:01:53]}  e4+ {[%clk 0:01:02]} 39. Kg3 {[%clk 0:01:49]}  Ne2+ {[%clk 0:01:01]} 40. Kg4 {[%clk 0:01:43]}  Ke5 {[%clk 0:00:48]} 41. Nc6+ {[%clk 0:01:39]}  Kf6 {[%clk 0:00:48]} 42. Rxc7 {[%clk 0:01:39]}  Rc2 {[%clk 0:00:39]} 43. Rc8 {[%clk 0:01:33]}  Rxa2 {[%clk 0:00:38]} 44. Rf8+ {[%clk 0:01:24]}  Kg7 {[%clk 0:00:39]} 45. Re8 {[%clk 0:01:24]}  Rc2 {[%clk 0:00:34]} 46. Rxe6 {[%clk 0:01:22]}  Nc1 {[%clk 0:00:17]} 47. Nd4 {[%clk 0:01:18]}  Rc3 {[%clk 0:00:16]} 48. b4 {[%clk 0:01:18]}  Nd3 {[%clk 0:00:12]} 49. b5 {[%clk 0:01:06]}  Nc5 {[%clk 0:00:12]} 50. Re7+ {[%clk 0:01:03]}  Kf6 {[%clk 0:00:13]} 51. Rxa7 {[%clk 0:01:03]}  Rd3 {[%clk 0:00:11]} 52. Nf5 {[%clk 0:01:01]}  Rd1 {[%clk 0:00:09]} 53. Ne3 {[%clk 0:00:58]}  Rd2 {[%clk 0:00:07]} 54. Nc4 {[%clk 0:00:55]}  Rg2+ {[%clk 0:00:06]} 55. Kf4 {[%clk 0:00:55]}  Rf2+ {[%clk 0:00:06]} 56. Kg3 {[%clk 0:00:54]}  Rf3+ {[%clk 0:00:07]} 57. Kg4 {[%clk 0:00:54]}  Rb3 {[%clk 0:00:07]} 58. Nxb6 {[%clk 0:00:49]}  Rxb5 {[%clk 0:00:07]} 59. Nd5+ {[%clk 0:00:50]}  Ke5 {[%clk 0:00:07]} 60. Nf4 {[%clk 0:00:50]}  Rb1 {[%clk 0:00:07]} 61. Ne2 {[%clk 0:00:45]}  Re1 {[%clk 0:00:07]} 62. Ng3 {[%clk 0:00:44]}  Rg1 {[%clk 0:00:07]} 63. Re7+ {[%clk 0:00:44]}  Ne6 {[%clk 0:00:07]} 64. h4 {[%clk 0:00:41]}  Kd6 {[%clk 0:00:04]} 65. Rf7 {[%clk 0:00:40]}  e3 {[%clk 0:00:04]} 66. Kh3 {[%clk 0:00:34]}  Nd4 {[%clk 0:00:03]} 67. Rf4 {[%clk 0:00:33]}  e2 {[%clk 0:00:01]} 68. Rxd4+ {[%clk 0:00:32]}  Ke5 {[%clk 0:00:01]} 69. Nxe2 {[%clk 0:00:33]}  Re1 {[%clk 0:00:02]} 70. Rd2 {[%clk 0:00:32]}  Rf1 {[%clk 0:00:03]} 71. Ng3 {[%clk 0:00:32]}  Rf3 {[%clk 0:00:03]} 72. Re2+ {[%clk 0:00:31]}  Kf6 {[%clk 0:00:03]} 73. Kg4 {[%clk 0:00:31]}  Ra3 {[%clk 0:00:04]} 74. h5 {[%clk 0:00:31]}  Ra4+ {[%clk 0:00:05]} 75. Re4 {[%clk 0:00:31]}  Ra5 {[%clk 0:00:04]} 76. Rf4+ {[%clk 0:00:31]}  Kg7 {[%clk 0:00:05]} 77. Rf5 {[%clk 0:00:31]}  Ra3 {[%clk 0:00:05]} 78. Ne4 {[%clk 0:00:31]}  Ra1 {[%clk 0:00:05]} 79. Rg5+ {[%clk 0:00:29]}  Kh8 {[%clk 0:00:04]} 80. Re5 {[%clk 0:00:25]}  Rg1+ {[%clk 0:00:04]} 81. Kf5 {[%clk 0:00:25]}  Rf1+ {[%clk 0:00:03]} 82. Kg6 {[%clk 0:00:26]}  Rf8 {[%clk 0:00:04]} 83. Re7 {[%clk 0:00:23]}  Ra8 {[%clk 0:00:01]} 84. Nf6 {[%clk 0:00:17]} 1-0


[Site "https://www.chess.com"]

[Event "Titled Tuesday Blitz August 09 Early 2022"]
[White "Rose, Felix"]
[Black "Ismayil, Malak"]
[WhiteFideId "5105722"]
[BlackFideId "13412604"]
[WhiteElo "2039"]
[BlackElo "1879"]
[Result "1/2-1/2"]
[Round "10"]
[TimeControl "180+1"]
[Date "2022.08.09"]
[WhiteClock "0:00:24"]
[BlackClock "0:00:11"]

1. e4 {[%clk 0:03:00]}  e5 {[%clk 0:02:59]} 2. Nf3 {[%clk 0:03:00]}  Nc6 {[%clk 0:02:58]} 3. Bb5 {[%clk 0:03:00]}  a6 {[%clk 0:02:58]} 4. Ba4 {[%clk 0:03:00]}  Nf6 {[%clk 0:02:58]} 5. O-O {[%clk 0:03:01]}  Be7 {[%clk 0:02:53]} 6. Re1 {[%clk 0:03:00]}  b5 {[%clk 0:02:53]} 7. Bb3 {[%clk 0:03:01]}  O-O {[%clk 0:02:54]} 8. h3 {[%clk 0:03:00]}  d5 {[%clk 0:02:50]} 9. exd5 {[%clk 0:03:00]}  Nxd5 {[%clk 0:02:51]} 10. Nxe5 {[%clk 0:02:59]}  Nxe5 {[%clk 0:02:51]} 11. Rxe5 {[%clk 0:03:00]}  c6 {[%clk 0:02:50]} 12. d4 {[%clk 0:02:47]}  Bd6 {[%clk 0:02:50]} 13. Re1 {[%clk 0:02:45]}  Qh4 {[%clk 0:02:45]} 14. Nc3 {[%clk 0:02:29]}  Nf4 {[%clk 0:02:14]} 15. Bxf4 {[%clk 0:01:59]}  Qxf4 {[%clk 0:02:11]} 16. g3 {[%clk 0:01:55]}  Qf5 {[%clk 0:02:01]} 17. Qg4 {[%clk 0:01:31]}  Qxg4 {[%clk 0:01:54]} 18. hxg4 {[%clk 0:01:32]}  Bxg4 {[%clk 0:01:55]} 19. Kg2 {[%clk 0:01:31]}  a5 {[%clk 0:01:45]} 20. a4 {[%clk 0:01:30]}  Bd7 {[%clk 0:01:14]} 21. axb5 {[%clk 0:01:23]}  cxb5 {[%clk 0:01:15]} 22. Bd5 {[%clk 0:01:23]}  Ra6 {[%clk 0:01:13]} 23. Ne4 {[%clk 0:01:19]}  h6 {[%clk 0:01:05]} 24. c4 {[%clk 0:01:15]}  bxc4 {[%clk 0:00:53]} 25. Bxc4 {[%clk 0:01:14]}  Rb6 {[%clk 0:00:54]} 26. Nxd6 {[%clk 0:00:59]}  Rxd6 {[%clk 0:00:52]} 27. d5 {[%clk 0:00:38]}  a4 {[%clk 0:00:51]} 28. b3 {[%clk 0:00:31]}  Rc8 {[%clk 0:00:44]} 29. Re4 {[%clk 0:00:28]}  f5 {[%clk 0:00:30]} 30. Rd4 {[%clk 0:00:25]}  axb3 {[%clk 0:00:26]} 31. Bxb3 {[%clk 0:00:25]}  Kf7 {[%clk 0:00:25]} 32. Ra7 {[%clk 0:00:24]}  Kf6 {[%clk 0:00:26]} 33. Rb4 {[%clk 0:00:20]}  Rc5 {[%clk 0:00:20]} 34. Rbb7 {[%clk 0:00:19]}  Be8 {[%clk 0:00:15]} 35. Re7 {[%clk 0:00:15]}  Bh5 {[%clk 0:00:12]} 36. Rxg7 {[%clk 0:00:14]}  Rb6 {[%clk 0:00:09]} 37. Ba2 {[%clk 0:00:11]}  Rb2 {[%clk 0:00:07]} 38. Rgb7 {[%clk 0:00:06]}  Rd2 {[%clk 0:00:04]} 39. Rb6+ {[%clk 0:00:05]}  Ke5 {[%clk 0:00:05]} 40. Rf7 {[%clk 0:00:05]}  Rcc2 {[%clk 0:00:03]} 41. Re7+ {[%clk 0:00:05]}  Kd4 {[%clk 0:00:04]} 42. Rb4+ {[%clk 0:00:05]}  Kc3 {[%clk 0:00:03]} 43. Rc4+ {[%clk 0:00:05]}  Kb2 {[%clk 0:00:04]} 44. Rxc2+ {[%clk 0:00:06]}  Kxc2 {[%clk 0:00:04]} 45. d6 {[%clk 0:00:07]}  Rxd6 {[%clk 0:00:04]} 46. Re6 {[%clk 0:00:07]}  Rxe6 {[%clk 0:00:04]} 47. Bxe6 {[%clk 0:00:08]}  Bg6 {[%clk 0:00:04]} 48. Kf3 {[%clk 0:00:08]}  Kd3 {[%clk 0:00:05]} 49. Kf4 {[%clk 0:00:09]}  Kd4 {[%clk 0:00:06]} 50. Bxf5 {[%clk 0:00:09]}  Bf7 {[%clk 0:00:06]} 51. g4 {[%clk 0:00:10]}  Bd5 {[%clk 0:00:06]} 52. f3 {[%clk 0:00:10]}  Bf7 {[%clk 0:00:06]} 53. Be4 {[%clk 0:00:10]}  Be6 {[%clk 0:00:06]} 54. Kg3 {[%clk 0:00:10]}  Ke5 {[%clk 0:00:06]} 55. Kh4 {[%clk 0:00:11]}  Kf6 {[%clk 0:00:06]} 56. Kh5 {[%clk 0:00:11]}  Kg7 {[%clk 0:00:07]} 57. g5 {[%clk 0:00:12]}  hxg5 {[%clk 0:00:06]} 58. Kxg5 {[%clk 0:00:13]}  Bf7 {[%clk 0:00:06]} 59. f4 {[%clk 0:00:14]}  Be6 {[%clk 0:00:07]} 60. Bf5 {[%clk 0:00:14]}  Bf7 {[%clk 0:00:07]} 61. Bd7 {[%clk 0:00:14]}  Bd5 {[%clk 0:00:07]} 62. f5 {[%clk 0:00:15]}  Bf7 {[%clk 0:00:06]} 63. f6+ {[%clk 0:00:16]}  Kf8 {[%clk 0:00:07]} 64. Bf5 {[%clk 0:00:17]}  Bd5 {[%clk 0:00:07]} 65. Kg6 {[%clk 0:00:16]}  Bf7+ {[%clk 0:00:08]} 66. Kg5 {[%clk 0:00:17]}  Bd5 {[%clk 0:00:09]} 67. Bg6 {[%clk 0:00:18]}  Be6 {[%clk 0:00:09]} 68. Kf4 {[%clk 0:00:18]}  Bd5 {[%clk 0:00:09]} 69. Ke5 {[%clk 0:00:19]}  Bb3 {[%clk 0:00:09]} 70. Bf5 {[%clk 0:00:20]}  Bg8 {[%clk 0:00:09]} 71. Be6 {[%clk 0:00:21]}  Bh7 {[%clk 0:00:09]} 72. Kd6 {[%clk 0:00:22]}  Bd3 {[%clk 0:00:09]} 73. Ke5 {[%clk 0:00:22]}  Bg6 {[%clk 0:00:09]} 74. Kd6 {[%clk 0:00:23]}  Be8 {[%clk 0:00:09]} 75. Bd7 {[%clk 0:00:23]}  Bxd7 {[%clk 0:00:09]} 76. Kxd7 {[%clk 0:00:24]}  Kf7 {[%clk 0:00:10]} 77. Kd6 {[%clk 0:00:24]}  Kxf6 {[%clk 0:00:11]} 1/2-1/2


[Site "https://www.chess.com"]

[Event "Titled Tuesday Blitz August 09 Early 2022"]
[White "Shapiro, Daniel"]
[Black "Estrada Nieto, Julian"]
[WhiteFideId "2001780"]
[BlackFideId "5101018"]
[WhiteElo "2250"]
[BlackElo "2252"]
[Result "1-0"]
[Round "10"]
[TimeControl "180+1"]
[Date "2022.08.09"]
[WhiteClock "0:00:18"]
[BlackClock "0:00:26"]

1. d4 {[%clk 0:03:00]}  d5 {[%clk 0:03:00]} 2. c4 {[%clk 0:03:00]}  dxc4 {[%clk 0:03:00]} 3. e4 {[%clk 0:02:58]}  e5 {[%clk 0:03:00]} 4. Nf3 {[%clk 0:02:58]}  exd4 {[%clk 0:03:00]} 5. Qxd4 {[%clk 0:02:58]}  Qxd4 {[%clk 0:02:59]} 6. Nxd4 {[%clk 0:02:58]}  Bc5 {[%clk 0:03:00]} 7. Nb5 {[%clk 0:02:53]}  Na6 {[%clk 0:02:59]} 8. Bxc4 {[%clk 0:02:52]}  Nf6 {[%clk 0:02:57]} 9. N5c3 {[%clk 0:02:39]}  Nb4 {[%clk 0:02:50]} 10. Na3 {[%clk 0:02:33]}  Be6 {[%clk 0:02:43]} 11. O-O {[%clk 0:02:29]}  c6 {[%clk 0:02:29]} 12. Bg5 {[%clk 0:02:27]}  Bd4 {[%clk 0:02:22]} 13. Rfd1 {[%clk 0:02:15]}  Rd8 {[%clk 0:02:15]} 14. Rac1 {[%clk 0:01:47]}  h6 {[%clk 0:02:12]} 15. Bxf6 {[%clk 0:01:37]}  Bxf6 {[%clk 0:02:07]} 16. Bxe6 {[%clk 0:01:37]}  fxe6 {[%clk 0:02:07]} 17. Nc4 {[%clk 0:01:31]}  Nd3 {[%clk 0:01:54]} 18. Rc2 {[%clk 0:01:21]}  Ne5 {[%clk 0:01:51]} 19. Nd6+ {[%clk 0:01:18]}  Ke7 {[%clk 0:01:48]} 20. Nxb7 {[%clk 0:01:18]}  Rxd1+ {[%clk 0:01:45]} 21. Nxd1 {[%clk 0:01:17]}  Rb8 {[%clk 0:01:44]} 22. Na5 {[%clk 0:01:14]}  Rd8 {[%clk 0:01:36]} 23. Ne3 {[%clk 0:01:05]}  Rd4 {[%clk 0:01:34]} 24. f4 {[%clk 0:00:59]}  Rxe4 {[%clk 0:01:33]} 25. fxe5 {[%clk 0:00:59]}  Bg5 {[%clk 0:01:29]} 26. Nxc6+ {[%clk 0:00:57]}  Kd7 {[%clk 0:01:29]} 27. Nf1 {[%clk 0:00:53]}  Re1 {[%clk 0:01:23]} 28. Kf2 {[%clk 0:00:52]}  Ra1 {[%clk 0:01:22]} 29. b3 {[%clk 0:00:48]}  a6 {[%clk 0:01:20]} 30. Nb4 {[%clk 0:00:47]}  Bd8 {[%clk 0:01:15]} 31. Nxa6 {[%clk 0:00:45]}  Bb6+ {[%clk 0:01:15]} 32. Ke2 {[%clk 0:00:45]}  g5 {[%clk 0:01:11]} 33. Ne3 {[%clk 0:00:45]}  Rg1 {[%clk 0:01:09]} 34. Kf3 {[%clk 0:00:40]}  h5 {[%clk 0:01:09]} 35. Nc4 {[%clk 0:00:34]}  g4+ {[%clk 0:01:06]} 36. Kg3 {[%clk 0:00:32]}  Bd8 {[%clk 0:00:59]} 37. Rd2+ {[%clk 0:00:30]}  Ke7 {[%clk 0:00:56]} 38. Nb4 {[%clk 0:00:28]}  Re1 {[%clk 0:00:52]} 39. Kh4 {[%clk 0:00:26]}  Ke8+ {[%clk 0:00:51]} 40. Kxh5 {[%clk 0:00:26]}  g3 {[%clk 0:00:50]} 41. hxg3 {[%clk 0:00:24]}  Bc7 {[%clk 0:00:48]} 42. Nd6+ {[%clk 0:00:23]}  Kf8 {[%clk 0:00:47]} 43. Rf2+ {[%clk 0:00:23]}  Kg8 {[%clk 0:00:46]} 44. Nc6 {[%clk 0:00:22]}  Bb6 {[%clk 0:00:45]} 45. Ne7+ {[%clk 0:00:21]}  Kg7 {[%clk 0:00:44]} 46. Ne8+ {[%clk 0:00:20]}  Kh8 {[%clk 0:00:43]} 47. Rf8+ {[%clk 0:00:18]}  Kh7 {[%clk 0:00:43]} 48. Rf7+ {[%clk 0:00:18]}  Kh8 {[%clk 0:00:43]} 49. Nf6 {[%clk 0:00:17]}  Rxe5+ {[%clk 0:00:41]} 50. Kg6 {[%clk 0:00:18]}  Rg5+ {[%clk 0:00:25]} 51. Kxg5 {[%clk 0:00:17]}  Be3+ {[%clk 0:00:26]} 52. Kg6 {[%clk 0:00:18]} 1-0


[Site "https://www.chess.com"]

[Event "Titled Tuesday Blitz August 09 Early 2022"]
[White "Shohat, Yotam"]
[Black "Madaminov, Mukhiddin"]
[WhiteFideId "2813955"]
[BlackFideId "14210703"]
[WhiteElo "2119"]
[BlackElo "2011"]
[Result "0-1"]
[Round "10"]
[TimeControl "180+1"]
[Date "2022.08.09"]
[WhiteClock "0:00:02"]
[BlackClock "0:01:52"]

1. e4 {[%clk 0:03:00]}  e5 {[%clk 0:02:59]} 2. Nf3 {[%clk 0:02:58]}  Nc6 {[%clk 0:03:00]} 3. Bb5 {[%clk 0:02:59]}  a6 {[%clk 0:02:59]} 4. Bxc6 {[%clk 0:02:59]}  dxc6 {[%clk 0:03:00]} 5. O-O {[%clk 0:02:59]}  f6 {[%clk 0:03:00]} 6. d4 {[%clk 0:02:58]}  exd4 {[%clk 0:03:01]} 7. Nxd4 {[%clk 0:02:59]}  c5 {[%clk 0:03:01]} 8. Nb3 {[%clk 0:02:59]}  Qxd1 {[%clk 0:03:02]} 9. Rxd1 {[%clk 0:02:59]}  Bg4 {[%clk 0:03:02]} 10. f3 {[%clk 0:02:58]}  Bd7 {[%clk 0:03:02]} 11. Bf4 {[%clk 0:02:56]}  O-O-O {[%clk 0:03:01]} 12. Nc3 {[%clk 0:02:56]}  c4 {[%clk 0:03:01]} 13. Nd2 {[%clk 0:02:24]}  Bc5+ {[%clk 0:02:59]} 14. Kh1 {[%clk 0:02:16]}  Be6 {[%clk 0:02:56]} 15. Nf1 {[%clk 0:02:14]}  Ne7 {[%clk 0:02:56]} 16. Be3 {[%clk 0:01:57]}  Bd6 {[%clk 0:02:55]} 17. Rd2 {[%clk 0:01:51]}  Be5 {[%clk 0:02:48]} 18. Rad1 {[%clk 0:01:48]}  Rxd2 {[%clk 0:02:47]} 19. Bxd2 {[%clk 0:01:32]}  g5 {[%clk 0:02:43]} 20. Be1 {[%clk 0:01:18]}  Ng6 {[%clk 0:02:33]} 21. Ne3 {[%clk 0:01:14]}  c6 {[%clk 0:02:26]} 22. Bg3 {[%clk 0:00:55]}  Nf4 {[%clk 0:02:25]} 23. Bxf4 {[%clk 0:00:32]}  gxf4 {[%clk 0:02:24]} 24. Nf1 {[%clk 0:00:23]}  h5 {[%clk 0:02:21]} 25. Kg1 {[%clk 0:00:21]}  Kc7 {[%clk 0:02:19]} 26. Kf2 {[%clk 0:00:20]}  b5 {[%clk 0:02:20]} 27. a3 {[%clk 0:00:17]}  a5 {[%clk 0:02:20]} 28. Rb1 {[%clk 0:00:13]}  h4 {[%clk 0:02:18]} 29. h3 {[%clk 0:00:06]}  Bd4+ {[%clk 0:02:18]} 30. Ke1 {[%clk 0:00:06]}  Rg8 {[%clk 0:02:19]} 31. Ne2 {[%clk 0:00:06]}  Be5 {[%clk 0:02:16]} 32. Kf2 {[%clk 0:00:06]}  b4 {[%clk 0:02:08]} 33. axb4 {[%clk 0:00:06]}  axb4 {[%clk 0:02:08]} 34. Nh2 {[%clk 0:00:06]}  Rd8 {[%clk 0:02:05]} 35. Ke1 {[%clk 0:00:03]}  Rg8 {[%clk 0:02:03]} 36. Ng4 {[%clk 0:00:02]}  c5 {[%clk 0:02:01]} 37. c3 {[%clk 0:00:03]}  Kc6 {[%clk 0:01:59]} 38. Ra1 {[%clk 0:00:02]}  Kb6 {[%clk 0:01:57]} 39. Rd1 {[%clk 0:00:02]}  Kb5 {[%clk 0:01:52]} 0-1


[Site "https://www.chess.com"]

[Event "Titled Tuesday Blitz August 09 Early 2022"]
[White "Shuvalov, Evgenij"]
[Black "Skliarov, Viktor"]
[WhiteFideId "4187237"]
[BlackFideId "14106736"]
[WhiteElo "2058"]
[BlackElo "2257"]
[Result "1-0"]
[Round "10"]
[TimeControl "180+1"]
[Date "2022.08.09"]
[WhiteClock "0:00:37"]
[BlackClock "0:00:02"]

1. Nf3 {[%clk 0:03:00]}  g6 {[%clk 0:02:59]} 2. c4 {[%clk 0:03:00]}  Bg7 {[%clk 0:03:00]} 3. d4 {[%clk 0:03:01]}  Nf6 {[%clk 0:03:00]} 4. Nc3 {[%clk 0:03:00]}  O-O {[%clk 0:03:00]} 5. e4 {[%clk 0:03:00]}  d6 {[%clk 0:03:00]} 6. Be2 {[%clk 0:03:00]}  Bg4 {[%clk 0:02:59]} 7. Be3 {[%clk 0:03:00]}  Nc6 {[%clk 0:02:58]} 8. Ng1 {[%clk 0:02:59]}  Bxe2 {[%clk 0:02:56]} 9. Ngxe2 {[%clk 0:03:00]}  Ng4 {[%clk 0:02:54]} 10. Bg5 {[%clk 0:02:51]}  h6 {[%clk 0:02:54]} 11. Bh4 {[%clk 0:02:51]}  g5 {[%clk 0:02:50]} 12. Bg3 {[%clk 0:02:51]}  e5 {[%clk 0:02:34]} 13. d5 {[%clk 0:02:50]}  Nd4 {[%clk 0:02:33]} 14. h3 {[%clk 0:02:34]}  Nf6 {[%clk 0:02:19]} 15. Bh2 {[%clk 0:02:10]}  c5 {[%clk 0:02:11]} 16. Ng3 {[%clk 0:02:10]}  Qd7 {[%clk 0:02:02]} 17. O-O {[%clk 0:02:09]}  a6 {[%clk 0:01:44]} 18. a4 {[%clk 0:02:06]}  b5 {[%clk 0:01:44]} 19. axb5 {[%clk 0:02:05]}  axb5 {[%clk 0:01:45]} 20. Rxa8 {[%clk 0:02:03]}  Rxa8 {[%clk 0:01:46]} 21. Nxb5 {[%clk 0:02:03]}  Nxb5 {[%clk 0:01:46]} 22. cxb5 {[%clk 0:02:04]}  Qxb5 {[%clk 0:01:45]} 23. Qc2 {[%clk 0:01:57]}  Ra2 {[%clk 0:01:37]} 24. Rb1 {[%clk 0:01:57]}  Bf8 {[%clk 0:01:27]} 25. f3 {[%clk 0:01:53]}  Nd7 {[%clk 0:01:22]} 26. Kh1 {[%clk 0:01:52]}  Nb6 {[%clk 0:01:18]} 27. Qc3 {[%clk 0:01:43]}  Na4 {[%clk 0:01:11]} 28. Qc1 {[%clk 0:01:36]}  Rxb2 {[%clk 0:01:07]} 29. Rxb2 {[%clk 0:01:36]}  Qxb2 {[%clk 0:00:55]} 30. Qd1 {[%clk 0:01:34]}  Nc3 {[%clk 0:00:43]} 31. Qe1 {[%clk 0:01:32]}  c4 {[%clk 0:00:40]} 32. Nf5 {[%clk 0:01:32]}  Qb1 {[%clk 0:00:29]} 33. Bg3 {[%clk 0:01:28]}  Qxe1+ {[%clk 0:00:25]} 34. Bxe1 {[%clk 0:01:28]}  Nb5 {[%clk 0:00:23]} 35. Ne3 {[%clk 0:01:26]}  c3 {[%clk 0:00:22]} 36. Kg1 {[%clk 0:01:23]}  Be7 {[%clk 0:00:22]} 37. Kf1 {[%clk 0:01:23]}  Bd8 {[%clk 0:00:22]} 38. Ke2 {[%clk 0:01:23]}  Bb6 {[%clk 0:00:22]} 39. Nc2 {[%clk 0:01:21]}  Bd4 {[%clk 0:00:13]} 40. Kd3 {[%clk 0:01:21]}  Kg7 {[%clk 0:00:12]} 41. Kc4 {[%clk 0:01:14]}  Nc7 {[%clk 0:00:12]} 42. Nxd4 {[%clk 0:01:01]}  exd4 {[%clk 0:00:13]} 43. Bf2 {[%clk 0:01:02]}  c2 {[%clk 0:00:08]} 44. Bxd4+ {[%clk 0:01:02]}  Kg6 {[%clk 0:00:09]} 45. Bb2 {[%clk 0:01:03]}  f5 {[%clk 0:00:09]} 46. Kd3 {[%clk 0:00:59]}  fxe4+ {[%clk 0:00:06]} 47. fxe4 {[%clk 0:01:00]}  Ne8 {[%clk 0:00:03]} 48. Kxc2 {[%clk 0:00:59]}  Nf6 {[%clk 0:00:02]} 49. Bxf6 {[%clk 0:00:37]}  Kxf6 {[%clk 0:00:02]} 50. Kd2 {[%clk 0:00:37]}  Ke5 {[%clk 0:00:02]} 51. Ke3 {[%clk 0:00:37]}  h5 {[%clk 0:00:03]} 52. g3 {[%clk 0:00:36]}  g4 {[%clk 0:00:01]} 53. h4 {[%clk 0:00:36]}  Kf6 {[%clk 0:00:01]} 54. Kf4 {[%clk 0:00:36]}  Kg6 {[%clk 0:00:02]} 55. e5 {[%clk 0:00:37]}  dxe5+ {[%clk 0:00:02]} 56. Kxe5 {[%clk 0:00:37]} 1-0


[Site "https://www.chess.com"]

[Event "Titled Tuesday Blitz August 09 Early 2022"]
[White "Solon, Nathan"]
[Black "Perez Rodriguez, Jennifer"]
[WhiteFideId "2017229"]
[BlackFideId "3507831"]
[WhiteElo "2622"]
[BlackElo "2170"]
[Result "1-0"]
[Round "10"]
[TimeControl "180+1"]
[Date "2022.08.09"]
[WhiteClock "0:00:10"]
[BlackClock "0:00:18"]

1. e4 {[%clk 0:03:00]}  e5 {[%clk 0:02:59]} 2. Nf3 {[%clk 0:02:59]}  Nc6 {[%clk 0:02:59]} 3. d3 {[%clk 0:02:59]}  Nf6 {[%clk 0:02:59]} 4. g3 {[%clk 0:02:59]}  Bc5 {[%clk 0:02:59]} 5. Bg2 {[%clk 0:03:00]}  d6 {[%clk 0:02:59]} 6. O-O {[%clk 0:02:59]}  Be6 {[%clk 0:02:59]} 7. Nc3 {[%clk 0:02:59]}  a5 {[%clk 0:02:58]} 8. h3 {[%clk 0:02:54]}  Qd7 {[%clk 0:02:58]} 9. Kh2 {[%clk 0:02:54]}  h5 {[%clk 0:02:56]} 10. Ng5 {[%clk 0:02:44]}  O-O-O {[%clk 0:02:49]} 11. Nxe6 {[%clk 0:02:01]}  Qxe6 {[%clk 0:02:48]} 12. Nd5 {[%clk 0:01:59]}  Ne7 {[%clk 0:02:36]} 13. c4 {[%clk 0:01:38]}  Nfxd5 {[%clk 0:02:32]} 14. cxd5 {[%clk 0:01:38]}  Qd7 {[%clk 0:02:31]} 15. Bd2 {[%clk 0:01:35]}  Bb6 {[%clk 0:02:29]} 16. b4 {[%clk 0:01:27]}  axb4 {[%clk 0:02:21]} 17. Bxb4 {[%clk 0:01:28]}  g5 {[%clk 0:02:17]} 18. a4 {[%clk 0:01:27]}  f5 {[%clk 0:02:04]} 19. a5 {[%clk 0:01:26]}  Bd4 {[%clk 0:02:05]} 20. Rb1 {[%clk 0:01:12]}  Kb8 {[%clk 0:01:57]} 21. a6 {[%clk 0:01:11]}  b6 {[%clk 0:01:56]} 22. Qb3 {[%clk 0:00:58]}  Ka7 {[%clk 0:01:49]} 23. Bc3 {[%clk 0:00:58]}  Bc5 {[%clk 0:01:45]} 24. Bb4 {[%clk 0:00:57]}  h4 {[%clk 0:01:27]} 25. Bxc5 {[%clk 0:00:46]}  dxc5 {[%clk 0:01:28]} 26. exf5 {[%clk 0:00:39]}  hxg3+ {[%clk 0:01:23]} 27. fxg3 {[%clk 0:00:39]}  Nc8 {[%clk 0:01:15]} 28. d6 {[%clk 0:00:36]}  Qxd6 {[%clk 0:01:10]} 29. f6 {[%clk 0:00:31]}  g4 {[%clk 0:00:57]} 30. h4 {[%clk 0:00:29]}  e4 {[%clk 0:00:51]} 31. Bxe4 {[%clk 0:00:23]}  Rxh4+ {[%clk 0:00:51]} 32. Kg2 {[%clk 0:00:23]}  Rh3 {[%clk 0:00:51]} 33. Rf4 {[%clk 0:00:20]}  Rdh8 {[%clk 0:00:49]} 34. Qd5 {[%clk 0:00:07]}  Qxd5 {[%clk 0:00:46]} 35. Bxd5 {[%clk 0:00:08]}  Rh2+ {[%clk 0:00:46]} 36. Kg1 {[%clk 0:00:08]}  R2h3 {[%clk 0:00:40]} 37. Kf2 {[%clk 0:00:07]}  Nd6 {[%clk 0:00:39]} 38. f7 {[%clk 0:00:07]}  Rf8 {[%clk 0:00:38]} 39. Re1 {[%clk 0:00:06]}  Rh7 {[%clk 0:00:38]} 40. Re7 {[%clk 0:00:06]}  Kxa6 {[%clk 0:00:35]} 41. Rxc7 {[%clk 0:00:06]}  Kb5 {[%clk 0:00:21]} 42. Rf6 {[%clk 0:00:06]}  Nxf7 {[%clk 0:00:16]} 43. Rfxf7 {[%clk 0:00:06]}  Rhxf7+ {[%clk 0:00:15]} 44. Rxf7 {[%clk 0:00:07]}  Rd8 {[%clk 0:00:15]} 45. Bc4+ {[%clk 0:00:06]}  Kb4 {[%clk 0:00:15]} 46. Rb7 {[%clk 0:00:05]}  Rd6 {[%clk 0:00:16]} 47. Ke3 {[%clk 0:00:06]}  Rf6 {[%clk 0:00:16]} 48. Rf7 {[%clk 0:00:05]}  Rd6 {[%clk 0:00:14]} 49. Kf4 {[%clk 0:00:05]}  b5 {[%clk 0:00:15]} 50. Rb7 {[%clk 0:00:05]}  Rd4+ {[%clk 0:00:14]} 51. Kg5 {[%clk 0:00:05]}  Rxc4 {[%clk 0:00:13]} 52. dxc4 {[%clk 0:00:05]}  Kxc4 {[%clk 0:00:13]} 53. Kxg4 {[%clk 0:00:06]}  b4 {[%clk 0:00:13]} 54. Kf5 {[%clk 0:00:07]}  b3 {[%clk 0:00:13]} 55. g4 {[%clk 0:00:07]}  Kc3 {[%clk 0:00:14]} 56. g5 {[%clk 0:00:08]}  c4 {[%clk 0:00:15]} 57. g6 {[%clk 0:00:08]}  Kc2 {[%clk 0:00:15]} 58. g7 {[%clk 0:00:09]}  c3 {[%clk 0:00:16]} 59. g8=Q {[%clk 0:00:10]}  b2 {[%clk 0:00:17]} 60. Qb3+ {[%clk 0:00:10]}  Kc1 {[%clk 0:00:17]} 61. Qxc3+ {[%clk 0:00:10]}  Kb1 {[%clk 0:00:18]} 62. Qxb2# {[%clk 0:00:10]} 1-0


[Site "https://www.chess.com"]